{"text_format":"1","workbook":"xlsx","n_sheets":4,"sheets":["Sheet1","DATA","SELECTION TAB","RESULT"],"not_rendered":{"charts":0,"images":0,"macros":1,"external_links":0,"defined_names":1,"comments":0,"pivot_tables":0},"unopened":[],"bounds":{"document_bytes":16777216,"sheet_cells":100000,"rows_first":2000,"rows_last":500,"rows_between":2000,"halvings":0,"cell_chars":16384,"cell_head_chars":4096},"cells_cut":0,"cells_raw":0,"read":"whole","date_system":"1900"}

{"sheet":"Sheet1","index":0,"n_rows":183,"n_cols":22,"rows_kept":183,"cut":false,"hidden":false,"merged":[]}
["Description","Language","Code","Price","Pack basic","Pack plus","Pack complete","Version Heavy","Version Light","Normal temp","Coldstore","Option forklift","options backside","A45 rail","Flat rail","MCC 40A","MCC 80A","Inverter 0,75kW","Inverter 1,1kW","Inverter 1,5kW","Inverter 2,2kW","Inverter 3,0kW"]
["ATL 2D - ATLAS 2D BASIC SPARE KIT","EN","SP/ATL2D/B",null,null,null,null,null,null,null,null,null,null,"A45 rail"]
["ATL 2D - ATLAS 2D COMPLETE SPARE KIT","EN","SP/ATL2D/C"]
["ATL 2D - CHARGE STATION SPARE KIT","EN","SP/ATL2D/CHARGE"]
["ATL 2D - STC SPARE KIT","EN","SP/ATL2D/STC"]
["DO NOT USE","EN","SP/MPWAS/IM 42-48"]
["DO NOT USE","EN","SP/MPWAS/M 42-48"]
["FORKLIFT DETECTION SENDER INCL. FIXATION","EN","SP/MBEAS/MBE 050C",null,"FALSE","FALSE","FALSE","FALSE","FALSE","FALSE","FALSE","FALSE","FALSE","FALSE","FALSE","FALSE","FALSE","FALSE","FALSE","FALSE","FALSE","FALSE"]
["SP BUMPER INCL. BUMPER SUPPORT","EN","SP/MPAS/BMP 01",null,null,null,"TRUE","TRUE","TRUE","TRUE","TRUE",null,null,"FALSE","FALSE","FALSE","FALSE","FALSE","FALSE","FALSE","FALSE","FALSE"]
["SP BUMPER INCL. FIXATIONS","EN","SP/MBAS/BMP 01",null,"FALSE","FALSE","FALSE","TRUE","TRUE","TRUE","TRUE","FALSE","FALSE","FALSE","FALSE","FALSE","FALSE","FALSE","FALSE","FALSE","FALSE","FALSE"]
["SP BUMPER INCL.BUMPER SUPPORT + FIXATION","EN","SP/MBAS/BMP 02",null,"FALSE","TRUE","TRUE","TRUE","TRUE","TRUE","TRUE","FALSE","FALSE","FALSE","FALSE","FALSE","FALSE","FALSE","FALSE","FALSE","FALSE","FALSE"]
["SP BUTTONS FOR CONTROL BOX AND BCC","EN","SP/MBEAS/CBX 03",null,"TRUE","FALSE","FALSE","TRUE","TRUE","TRUE","TRUE","FALSE","FALSE","FALSE","FALSE","FALSE","FALSE","FALSE","FALSE","FALSE","FALSE","FALSE"]
["SP BUTTONS FOR CONTROL BOX CBL-CBR-CB","EN","SP/MBEAS/CBX 01",null,"TRUE","FALSE","FALSE","TRUE","TRUE","TRUE","TRUE","FALSE","TRUE","FALSE","FALSE","FALSE","FALSE","FALSE","FALSE","FALSE","FALSE","FALSE"]
["SP COLUMN FOR P.DETECTION +RECEIVER+FIX.","EN","SP/MBEAS/PDSR 01",null,"FALSE","FALSE","TRUE","TRUE","TRUE","TRUE","TRUE","FALSE","FALSE","FALSE","FALSE","FALSE","FALSE","FALSE","FALSE","FALSE","FALSE","FALSE"]
["SP COLUMN FOR P.DETECTION +RECEIVER+FIX.","EN","SP/MBEAS/PDSR 02",null,"FALSE","FALSE","TRUE","TRUE","TRUE","TRUE","TRUE","FALSE","FALSE","FALSE","FALSE","FALSE","FALSE","FALSE","FALSE","FALSE","FALSE","FALSE"]
["SP COLUMN FOR P.DETECTION +SENDER+FIX.","EN","SP/MBEAS/PDSS 01",null,"FALSE","FALSE","TRUE","TRUE","TRUE","TRUE","TRUE","FALSE","FALSE","FALSE","FALSE","FALSE","FALSE","FALSE","FALSE","FALSE","FALSE","FALSE"]
["SP COLUMN FOR P.DETECTION +SENDER+FIX.","EN","SP/MBEAS/PDSS 02",null,"FALSE","FALSE","TRUE","TRUE","TRUE","TRUE","TRUE","FALSE","FALSE","FALSE","FALSE","FALSE","FALSE","FALSE","FALSE","FALSE","FALSE","FALSE"]
["SP CONTROL BOX FOR BCC IN FRONT POSITION","EN","SP/MBEAS/CB 01",null,"FALSE","TRUE","TRUE","TRUE","TRUE","TRUE","TRUE","FALSE","FALSE","FALSE","FALSE","FALSE","FALSE","FALSE","FALSE","FALSE","FALSE","FALSE"]
["SP CORNER PROT. L CONN 18&26T MP-06010V4","EN","SP/MPCAS/CPL 01",null,null,null,"FALSE","TRUE","TRUE","TRUE","TRUE","FALSE","FALSE","FALSE","FALSE","FALSE","FALSE","FALSE","FALSE","FALSE","FALSE","FALSE"]
["SP CORNER PROT. L CONN 42&48T MP-06014V3","EN","SP/MPCAS/CPL 03",null,null,null,"FALSE","TRUE","TRUE","TRUE","TRUE","FALSE","FALSE","FALSE","FALSE","FALSE","FALSE","FALSE","FALSE","FALSE","FALSE","FALSE"]
["SP CORNER PROT. LEFT CONN 32T MP-06012V4","EN","SP/MPCAS/CPL 02",null,null,null,"FALSE","TRUE","TRUE","TRUE","TRUE","FALSE","FALSE","FALSE","FALSE","FALSE","FALSE","FALSE","FALSE","FALSE","FALSE","FALSE"]
["SP CORNER PROT. R CONN 18&26T MP-06011V4","EN","SP/MPCAS/CPR 01",null,null,null,"FALSE","TRUE","TRUE","TRUE","TRUE","FALSE","FALSE","FALSE","FALSE","FALSE","FALSE","FALSE","FALSE","FALSE","FALSE","FALSE"]
["SP CORNER PROT. R CONN 42&48T MP-06015V3","EN","SP/MPCAS/CPR 03",null,null,null,"FALSE","TRUE","TRUE","TRUE","TRUE","FALSE","FALSE","FALSE","FALSE","FALSE","FALSE","FALSE","FALSE","FALSE","FALSE","FALSE"]
["SP CORNER PROT. RIGHT CON 32T MP-06013V4","EN","SP/MPCAS/CPR 02",null,null,null,"FALSE","TRUE","TRUE","TRUE","TRUE","FALSE","FALSE","FALSE","FALSE","FALSE","FALSE","FALSE","FALSE","FALSE","FALSE","FALSE"]
["SP CORNER PROTECTION LEFT 01","EN","SP/MBCAS/CPL 01",null,"FALSE","FALSE","FALSE","TRUE","TRUE","TRUE","TRUE","FALSE","FALSE","FALSE","FALSE","FALSE","FALSE","FALSE","FALSE","FALSE","FALSE","FALSE"]
["SP CORNER PROTECTION LEFT 02","EN","SP/MBCAS/CPL 02",null,"TRUE","TRUE","TRUE","TRUE","TRUE","TRUE","TRUE","FALSE","FALSE","FALSE","FALSE","FALSE","FALSE","FALSE","FALSE","FALSE","FALSE","FALSE"]
["SP CORNER PROTECTION RIGHT 01","EN","SP/MBCAS/CPR 01",null,"FALSE","FALSE","FALSE","TRUE","TRUE","TRUE","TRUE","FALSE","FALSE","FALSE","FALSE","FALSE","FALSE","FALSE","FALSE","FALSE","FALSE","FALSE"]
["SP CORNER PROTECTION RIGHT 02","EN","SP/MBCAS/CPR 02",null,"TRUE","TRUE","TRUE","TRUE","TRUE","TRUE","TRUE","FALSE","FALSE","FALSE","FALSE","FALSE","FALSE","FALSE","FALSE","FALSE","FALSE","FALSE"]
["SP CROSS AISLE DISTANCE SENSOR INCL.FIX","EN","SP/MBEAS/MBE 060",null,"TRUE","TRUE","TRUE","TRUE","TRUE","TRUE","TRUE","FALSE","FALSE","FALSE","FALSE","FALSE","FALSE","FALSE","FALSE","FALSE","FALSE","FALSE"]
["SP DISTANCE SENSOR SET","EN","SP/MPEAS/DSS 01",null,null,null,null,"OK","OK","OK","OK","FALSE","FALSE","FALSE","FALSE","FALSE","FALSE","FALSE","FALSE","FALSE","FALSE","FALSE"]
["SP DRIVEN SHAFT CONNECTION","EN","SP/MBAS/MBM 070",null,"FALSE","FALSE","TRUE","TRUE","TRUE","TRUE","TRUE","FALSE","FALSE","FALSE","FALSE","FALSE","FALSE","FALSE","FALSE","FALSE","FALSE","FALSE"]
["SP DRIVEN WHEEL ASSEMBLY +MBM 018 (<40T)","EN","SP/MBWAS/D H01",null,"FALSE","FALSE","TRUE","TRUE","FALSE","TRUE","TRUE","FALSE","FALSE","FALSE","FALSE","FALSE","FALSE","FALSE","FALSE","FALSE","FALSE","FALSE"]
["SP DRIVEN WHEEL ASSEMBLY WITH MBM 015","EN","SP/MBWAS/D 01",null,"FALSE","FALSE","TRUE","FALSE","TRUE","TRUE","TRUE","FALSE","FALSE","FALSE","FALSE","FALSE","FALSE","FALSE","FALSE","FALSE","FALSE","FALSE"]
["SP DRIVEN WHEEL ASSEMBLY WITH MBM 016","EN","SP/MBWAS/D 02",null,"FALSE","FALSE","FALSE","TRUE","TRUE","TRUE","TRUE","FALSE","FALSE","FALSE","FALSE","FALSE","FALSE","FALSE","FALSE","FALSE","FALSE","FALSE"]
["SP DRIVEN WHEEL ASSEMBLY WITH MBM 018","EN","SP/MBWAS/D 41",null,"FALSE","FALSE","FALSE","TRUE","TRUE","TRUE","TRUE","FALSE","FALSE","FALSE","FALSE","FALSE","FALSE","FALSE","FALSE","FALSE","FALSE","FALSE"]
["SP EXTERNAL OPERATION BOX FOR MCC + FIX","EN","SP/MBEAS/CBC 01",null,"FALSE","TRUE","TRUE","TRUE","TRUE","FALSE","TRUE","FALSE","FALSE","FALSE","FALSE","FALSE","FALSE","FALSE","FALSE","FALSE","FALSE","FALSE"]
["SP FORKLIFT DETECT.SENDER INCL.FIXATION","EN","SP/MBEAS/MBE 050",null,"FALSE","FALSE","FALSE","TRUE","TRUE","TRUE","TRUE","FALSE","FALSE","FALSE","FALSE","FALSE","FALSE","FALSE","FALSE","FALSE","FALSE","FALSE"]
["SP FORKLIFT DETECTION RECEIVER INCL.FIX.","EN","SP/MBEAS/MBE 051",null,"FALSE","FALSE","FALSE","TRUE","TRUE","TRUE","TRUE","FALSE","FALSE","FALSE","FALSE","FALSE","FALSE","FALSE","FALSE","FALSE","FALSE","FALSE"]
["SP FORKLIFT DETECTION RECEIVER INCL.FIX.","EN","SP/MBEAS/MBE 051C",null,"FALSE","FALSE","FALSE","TRUE","TRUE","TRUE","TRUE","FALSE","FALSE","FALSE","FALSE","FALSE","FALSE","FALSE","FALSE","FALSE","FALSE","FALSE"]
["SP FORKLIFT DETECTION RECEIVER INCL.FIX.","EN","SP/MBEAS/MBE 078",null,"FALSE","FALSE","FALSE","FALSE","FALSE","FALSE","FALSE","FALSE","FALSE","FALSE","FALSE","FALSE","FALSE","FALSE","FALSE","FALSE","FALSE","FALSE"]
["SP FORKLIFT DETECTION SENDER INCL.FIX","EN","SP/MBEAS/MBE 077",null,"FALSE","FALSE","FALSE","FALSE","FALSE","FALSE","FALSE","FALSE","FALSE","FALSE","FALSE","FALSE","FALSE","FALSE","FALSE","FALSE","FALSE","FALSE"]
["SP FORKLIFT DETECTION V1 SENSOR + L-SUPP","EN","SP/MBAS/FDS 01",null,"FALSE","FALSE","TRUE","OK","TRUE","TRUE","TRUE","FALSE","FALSE",null,"FALSE","FALSE","FALSE","FALSE","FALSE","FALSE","FALSE","FALSE"]
["SP FORKLIFT DETECTION V2 SENSOR + FIX","EN","SP/MBAS/FDS 02",null,"FALSE","FALSE","TRUE","OK","TRUE","TRUE","TRUE","FALSE","FALSE",null,"FALSE","FALSE","FALSE","FALSE","FALSE","FALSE","FALSE","FALSE"]
["SP GUIDING WHEEL ASSEMBLY MBM 018","EN","SP/MBWAS/G 41",null,"FALSE","FALSE","TRUE","OK","TRUE","TRUE","TRUE","FALSE","FALSE",null,"FALSE","FALSE","FALSE","FALSE","FALSE","FALSE","FALSE","FALSE"]
["SP GUIDING WHEEL ASSEMBLY MBM015 FOR90MM","EN","SP/MBWAS/G 01",null,"FALSE","FALSE","FALSE","FALSE","FALSE","FALSE","FALSE","FALSE","FALSE",null,"FALSE","FALSE","FALSE","FALSE","FALSE","FALSE","FALSE","FALSE"]
["SP GUIDING WHEEL ASSEMBLY MBM015 FOR90MM","EN","SP/MBWAS/G 21",null,"FALSE","FALSE","FALSE","FALSE","FALSE","FALSE","FALSE","FALSE","FALSE",null,"FALSE","FALSE","FALSE","FALSE","FALSE","FALSE","FALSE","FALSE"]
["SP GUIDING WHEEL ASSEMBLY MBM015 FOR98MM","EN","SP/MBWAS/G 11",null,"FALSE","FALSE","TRUE","FALSE","TRUE","TRUE","TRUE","FALSE","FALSE","TRUE","FALSE","FALSE","FALSE","FALSE","FALSE","FALSE","FALSE","FALSE"]
["SP GUIDING WHEEL ASSEMBLY MBM015 FOR98MM","EN","SP/MBWAS/G 31",null,"FALSE","FALSE","TRUE","FALSE","TRUE","TRUE","TRUE","FALSE","FALSE","FALSE","TRUE","FALSE","FALSE","FALSE","FALSE","FALSE","FALSE","FALSE"]
["SP GUIDING WHEEL ASSEMBLY MBM016 FOR90MM","EN","SP/MBWAS/G 02",null,"FALSE","FALSE","TRUE",null,null,"TRUE","TRUE","FALSE","FALSE",null,null,"FALSE","FALSE","FALSE","FALSE","FALSE","FALSE","FALSE"]
["SP GUIDING WHEEL ASSEMBLY MBM016 FOR90MM","EN","SP/MBWAS/G 22",null,"FALSE","FALSE","TRUE",null,null,"TRUE","TRUE","FALSE","FALSE",null,null,"FALSE","FALSE","FALSE","FALSE","FALSE","FALSE","FALSE"]
["SP GUIDING WHEEL ASSEMBLY MBM016 FOR98MM","EN","SP/MBWAS/G 12",null,"FALSE","FALSE","TRUE",null,null,"TRUE","TRUE","FALSE","FALSE",null,null,"FALSE","FALSE","FALSE","FALSE","FALSE","FALSE","FALSE"]
["SP GUIDING WHEEL ASSEMBLY MBM016 FOR98MM","EN","SP/MBWAS/G 32",null,"FALSE","FALSE","TRUE",null,null,"TRUE","TRUE","FALSE","FALSE",null,null,"FALSE","FALSE","FALSE","FALSE","FALSE","FALSE","FALSE"]
["SP GUIDING WHEEL ASSEMBLY MBM018 FOR98MM","EN","SP/MBWAS/G H11",null,"FALSE","FALSE","TRUE","TRUE","FALSE","TRUE","TRUE","FALSE","FALSE","TRUE","FALSE","FALSE","FALSE","FALSE","FALSE","FALSE","FALSE","FALSE"]
["SP GUIDING WHEEL ASSEMBLY MBM018 FOR98MM","EN","SP/MBWAS/G H31",null,"FALSE","FALSE","TRUE","TRUE","FALSE","TRUE","TRUE","FALSE","FALSE","FALSE","TRUE","FALSE","FALSE","FALSE","FALSE","FALSE","FALSE","FALSE"]
["SP GUIDING WHEEL ASSEMLY 18&26T CHASSIS","EN","SP/MPWAS/G 18-26",null,"FALSE",null,"TRUE","TRUE","FALSE","TRUE","TRUE","FALSE","FALSE",null,null,"FALSE","FALSE",null,"FALSE","FALSE","FALSE","FALSE"]
["SP GUIDING WHEEL ASSEMLY 32T CHASSIS","EN","SP/MPWAS/G 32",null,"FALSE",null,"TRUE","TRUE","FALSE","TRUE","TRUE","FALSE","FALSE",null,null,"FALSE","FALSE",null,"FALSE","FALSE","FALSE","FALSE"]
["SP GUIDING WHEEL ASSEMLY 42&48T CHASSIS","EN","SP/MPWAS/G 42-48",null,"FALSE",null,"TRUE","TRUE","FALSE","TRUE","TRUE","FALSE","FALSE",null,null,"FALSE","FALSE",null,"FALSE","FALSE","FALSE","FALSE"]
["SP IDLE WHEEL ASSEMBLY 18&26T CHASSIS","EN","SP/MPWAS/I 18-26",null,"FALSE",null,"TRUE","TRUE","FALSE","TRUE","TRUE","FALSE","FALSE",null,null,"FALSE","FALSE",null,"FALSE","FALSE","FALSE","FALSE"]
["SP IDLE WHEEL ASSEMBLY 32T CHASSIS","EN","SP/MPWAS/I 32",null,"FALSE",null,"TRUE","TRUE","FALSE","TRUE","TRUE","FALSE","FALSE",null,null,"FALSE","FALSE",null,"FALSE","FALSE","FALSE","FALSE"]
["SP IDLE WHEEL ASSEMBLY 32T CHASSIS","EN","SP/MPWAS/IM 32",null,"FALSE",null,"TRUE","TRUE","FALSE","TRUE","TRUE","FALSE","FALSE",null,null,"FALSE","FALSE",null,"FALSE","FALSE","FALSE","FALSE"]
["SP IDLE WHEEL ASSEMBLY 42T CHASSIS","EN","SP/MPWAS/IM 42",null,"FALSE",null,"TRUE","TRUE","FALSE","TRUE","TRUE","FALSE","FALSE",null,null,"FALSE","FALSE",null,"FALSE","FALSE","FALSE","FALSE"]
["SP IDLE WHEEL ASSEMBLY 42T CHASSIS,INNER","EN","SP/MPWAS/II 42",null,"FALSE",null,"TRUE","TRUE","FALSE","TRUE","TRUE","FALSE","FALSE",null,null,"FALSE","FALSE",null,"FALSE","FALSE","FALSE","FALSE"]
["SP IDLE WHEEL ASSEMBLY 42T CHASSIS,OUTER","EN","SP/MPWAS/IO 42",null,"FALSE",null,"TRUE","TRUE","FALSE","TRUE","TRUE","FALSE","FALSE",null,null,"FALSE","FALSE",null,"FALSE","FALSE","FALSE","FALSE"]
["SP IDLE WHEEL ASSEMBLY 48T CHASSIS","EN","SP/MPWAS/I 48",null,"FALSE",null,"TRUE","TRUE","FALSE","TRUE","TRUE","FALSE","FALSE",null,null,"FALSE","FALSE",null,"FALSE","FALSE","FALSE","FALSE"]
["SP IDLE WHEEL ASSEMBLY 48T CHASSIS","EN","SP/MPWAS/IM 48",null,"FALSE",null,"TRUE","TRUE","FALSE","TRUE","TRUE","FALSE","FALSE",null,null,"FALSE","FALSE",null,"FALSE","FALSE","FALSE","FALSE"]
["SP INVERTOR 0.75 KW FOR BCC","EN","SP/MBE 031",null,"FALSE","TRUE","TRUE","TRUE","TRUE","TRUE","TRUE","FALSE","FALSE","FALSE","FALSE","FALSE","FALSE","TRUE","FALSE","FALSE","FALSE","FALSE"]
["SP INVERTOR 1.1 KW FOR BCC","EN","SP/MBE 032",null,"FALSE","TRUE","TRUE","TRUE","TRUE","TRUE","TRUE","FALSE","FALSE","FALSE","FALSE","FALSE","FALSE","FALSE","TRUE","FALSE","FALSE","FALSE"]
["SP INVERTOR 1.5 KW FOR BCC","EN","SP/MBE 033",null,"FALSE","TRUE","TRUE","TRUE","TRUE","TRUE","TRUE","FALSE","FALSE","FALSE","FALSE","FALSE","FALSE","FALSE","FALSE","TRUE","FALSE","FALSE"]
["SP INVERTOR 2.2 KW FOR BCC","EN","SP/MBE 034",null,"FALSE","TRUE","TRUE","TRUE","TRUE","TRUE","TRUE","FALSE","FALSE","FALSE","FALSE","FALSE","FALSE","FALSE","FALSE","FALSE","TRUE","FALSE"]
["SP INVERTOR 3.0 KW FOR BCC","EN","SP/MBE 035",null,"FALSE","TRUE","TRUE","TRUE","TRUE","TRUE","TRUE","FALSE","FALSE","FALSE","FALSE","FALSE","FALSE","FALSE","FALSE","FALSE","FALSE","TRUE"]
["SP KEYSWITCH AND BUTTONS FOR MCC","EN","SP/MBEAS/CBX 02",null,null,"TRUE",null,"TRUE","TRUE","TRUE","TRUE","FALSE","FALSE","FALSE","FALSE","FALSE","FALSE","FALSE","FALSE","FALSE","FALSE"]
["SP KEYSWITCH AND BUTTONS FOR MCC GRAPH","EN","SP/MBEAS/CBX 04",null,"TRUE","TRUE","FALSE","TRUE","TRUE","TRUE","TRUE","FALSE","FALSE","FALSE","FALSE","FALSE","FALSE","FALSE","FALSE","FALSE","FALSE","FALSE"]
["SP LOGIC BOX FOR BCC","EN","SP/MBE 028",null,"FALSE","FALSE","FALSE","TRUE","TRUE","TRUE","TRUE","FALSE","FALSE","FALSE","FALSE","FALSE","FALSE","FALSE","FALSE","FALSE","FALSE","FALSE"]
["SP LOGIC BOX FOR BCC - CONTROL UNIT (V2)","EN","SP/MBE 028B",null,"TRUE","TRUE","TRUE","TRUE","TRUE","TRUE","TRUE","FALSE","FALSE","FALSE","FALSE","FALSE","FALSE","FALSE","FALSE","FALSE","FALSE","FALSE"]
["SP LOGIC BOX FOR BCC -CONTROL UNIT (V2P)","EN","SP/MBE 028C",null,null,null,"TRUE","TRUE","TRUE","TRUE","TRUE","FALSE","FALSE","FALSE","FALSE",null,"FALSE","FALSE","FALSE","FALSE","FALSE","FALSE"]
["SP MB PARTS FOR MCC GRAPH.DISP. MAX.40A","EN","SP/MBEAS/MCC/G 31",null,"FALSE","FALSE","TRUE","TRUE","TRUE","TRUE","TRUE","FALSE","FALSE","FALSE","FALSE","TRUE","FALSE","FALSE","FALSE","FALSE","FALSE","FALSE"]
["SP MB PARTS FOR MCC GRAPH.DISP. MAX.80A","EN","SP/MBEAS/MCC/G 32",null,"FALSE","FALSE","TRUE","TRUE","TRUE","TRUE","TRUE","FALSE","FALSE","FALSE","FALSE","FALSE","TRUE","FALSE","FALSE","FALSE","FALSE","FALSE"]
["SP MCC WITH SIEMENS BOARD40A (NO OPTION)","EN","SP/MBEAS/MCC/G 21",null,"FALSE",null,"TRUE",null,"FALSE",null,null,"FALSE","FALSE","FALSE","FALSE","FALSE",null,"FALSE","FALSE","FALSE","FALSE","FALSE"]
["SP MISCELLANEOUS FOR MCC GRAPH.DISPL. V2","EN","SP/MBEAS/MCC/G 22",null,"FALSE",null,"TRUE",null,"FALSE",null,null,"FALSE","FALSE","FALSE","FALSE","FALSE",null,"FALSE","FALSE","FALSE","FALSE","FALSE"]
["SP MISCELLANEOUS FOR MCC GRAPHIC DISP","EN","SP/MBEAS/MCC/G 01",null,"FALSE",null,"TRUE",null,"FALSE",null,null,"FALSE","FALSE","FALSE","FALSE","FALSE",null,"FALSE","FALSE","FALSE","FALSE","FALSE"]
["SP MISCELLANEOUS FOR MCC TEXT DISPLAY","EN","SP/MBEAS/MCC/T 01",null,"FALSE",null,"TRUE",null,"FALSE",null,null,"FALSE","FALSE","FALSE","FALSE","FALSE",null,"FALSE","FALSE","FALSE","FALSE","FALSE"]
["SP MISCELLANEOUS FOR MCC TEXT DISPLAY","EN","SP/MBEAS/MCC/T 21",null,"FALSE",null,"TRUE",null,"FALSE",null,null,"FALSE","FALSE","FALSE","FALSE","FALSE",null,"FALSE","FALSE","FALSE","FALSE","FALSE"]
["SP MISCELLANEOUS FOR MCC TEXT DISPLAY","EN","SP/MBEAS/MCC/T 22",null,"FALSE",null,"TRUE",null,"FALSE",null,null,"FALSE","FALSE","FALSE","FALSE","FALSE",null,"FALSE","FALSE","FALSE","FALSE","FALSE"]
["SP MOTOR 0,18KW COLDSTORE","EN","SP/MPEAS/MOT 21",null,"FALSE",null,"TRUE",null,"FALSE",null,null,"FALSE","FALSE","FALSE","FALSE","FALSE",null,"FALSE","FALSE","FALSE","FALSE","FALSE"]
["SP MOTOR 0,25KW COLDSTORE","EN","SP/MPEAS/MOT 22",null,"FALSE",null,"TRUE",null,"FALSE",null,null,"FALSE","FALSE","FALSE","FALSE","FALSE",null,"FALSE","FALSE","FALSE","FALSE","FALSE"]
["SP MOTOR COLDSTORE TEMP MBM 022","EN","SP/MBEAS/MOT 12",null,"FALSE","TRUE","TRUE","TRUE","TRUE","FALSE","TRUE","FALSE","FALSE","FALSE","FALSE","FALSE","FALSE","FALSE","FALSE","FALSE","FALSE","FALSE"]
["SP MOTOR COLDSTORE TEMP MBM 022","EN","SP/MBEAS/MOT 22",null,"FALSE","TRUE","TRUE","FALSE","FALSE",null,"TRUE","FALSE","FALSE","FALSE","FALSE","FALSE","FALSE","FALSE","FALSE","FALSE","FALSE","FALSE"]
["SP MOTOR NORMAL TEMP MBM 021","EN","SP/MBEAS/MOT 11",null,"FALSE","TRUE","TRUE","TRUE","TRUE","TRUE","FALSE","FALSE","FALSE","FALSE","FALSE","FALSE","FALSE","FALSE","FALSE","FALSE","FALSE","FALSE"]
["SP MOTOR NORMAL TEMP WITH MBM021","EN","SP/MBEAS/MOT 01",null,"FALSE",null,"TRUE","FALSE","FALSE","TRUE","TRUE","FALSE","FALSE","FALSE","FALSE","FALSE","FALSE","FALSE","FALSE","FALSE","FALSE","FALSE"]
["SP MOTOR NORMAL TEMP WITH MBM022","EN","SP/MBEAS/MOT 02",null,"FALSE",null,"TRUE","FALSE","FALSE","TRUE","TRUE","FALSE","FALSE","FALSE","FALSE","FALSE","FALSE","FALSE","FALSE","FALSE","FALSE","FALSE"]
["SP MOTOR SUPPORT WITH FIX. AND LOCK","EN","SP/MBAS/MBC 035",null,"FALSE",null,"TRUE","FALSE","FALSE","TRUE","TRUE","FALSE","FALSE","FALSE","FALSE","FALSE","FALSE","FALSE","FALSE","FALSE","FALSE","FALSE"]
["SP MOTOR SUPPORT WITH FIX. AND LOCK","EN","SP/MBAS/MBC 036",null,"FALSE","FALSE","TRUE","TRUE","TRUE","TRUE","TRUE","FALSE","FALSE","FALSE","FALSE","FALSE","FALSE","FALSE","FALSE","FALSE","FALSE","FALSE"]
["SP MOTOR WITH GEARWHEEL FOR MOT.SUPPORT","EN","SP/MBEAS/MOT 21",null,"FALSE","FALSE","TRUE",null,"FALSE","TRUE","TRUE","FALSE","FALSE","FALSE","FALSE","FALSE","FALSE","FALSE","FALSE","FALSE","FALSE","FALSE"]
["SP MOTOR.WHEEL ASSEMBLY + MBM 018 (<40T)","EN","SP/MBWAS/M H01",null,"FALSE","FALSE","TRUE","TRUE","FALSE","TRUE","TRUE","FALSE","FALSE","FALSE","FALSE","FALSE","FALSE","FALSE","FALSE","FALSE","FALSE","FALSE"]
["SP MOTOR.WHEEL ASSEMBLY WITH MBM 015","EN","SP/MBWAS/M 01",null,"FALSE","FALSE","TRUE","FALSE","TRUE","TRUE","TRUE","FALSE","FALSE","FALSE","FALSE","FALSE","FALSE","FALSE","FALSE","FALSE","FALSE","FALSE"]
["SP MOTOR.WHEEL ASSEMBLY WITH MBM 016","EN","SP/MBWAS/M 02",null,"FALSE","FALSE","FALSE","FALSE","FALSE","TRUE","TRUE","FALSE","FALSE","FALSE","FALSE","FALSE","FALSE","FALSE","FALSE","FALSE","FALSE","FALSE"]
["SP MOTOR.WHEEL ASSEMBLY WITH MBM 018","EN","SP/MBWAS/M 41",null,"FALSE","FALSE","FALSE","FALSE","FALSE","TRUE","TRUE","FALSE","FALSE","FALSE","FALSE","FALSE","FALSE","FALSE","FALSE","FALSE","FALSE","FALSE"]
["SP MOTORIZED WHEEL ASSEMBLY 18&26T","EN","SP/MPWAS/M 18-26",null,"FALSE","FALSE","FALSE","FALSE","FALSE","TRUE","TRUE","FALSE","FALSE","FALSE","FALSE","FALSE","FALSE","FALSE","FALSE","FALSE","FALSE","FALSE"]
["SP MOTORIZED WHEEL ASSEMBLY 32T","EN","SP/MPWAS/M 32",null,"FALSE","FALSE","FALSE","FALSE","FALSE","TRUE","TRUE","FALSE","FALSE","FALSE","FALSE","FALSE","FALSE","FALSE","FALSE","FALSE","FALSE","FALSE"]
["SP MOTORIZED WHEEL ASSEMBLY 42T","EN","SP/MPWAS/M 42",null,"FALSE","FALSE","FALSE","FALSE","FALSE","TRUE","TRUE","FALSE","FALSE","FALSE","FALSE","FALSE","FALSE","FALSE","FALSE","FALSE","FALSE","FALSE"]
["SP MOTORIZED WHEEL ASSEMBLY 48T","EN","SP/MPWAS/M 48",null,"FALSE","FALSE","FALSE","FALSE","FALSE","TRUE","TRUE","FALSE","FALSE","FALSE","FALSE","FALSE","FALSE","FALSE","FALSE","FALSE","FALSE","FALSE"]
["SP OPERAT. BOX LEFT ASSY INCL.PLATE+FIX","EN","SP/MBAS/FDS 03",null,"FALSE","FALSE","FALSE","FALSE","FALSE","FALSE","FALSE","FALSE","FALSE","FALSE","FALSE","FALSE","FALSE","FALSE","FALSE","FALSE","FALSE","FALSE"]
["SP OPERAT. BOX LEFT ASSY INCL.PLATE+FIX","EN","SP/MBEAS/FDS 04",null,"FALSE","FALSE","TRUE","TRUE","TRUE","TRUE","TRUE","FALSE","FALSE","FALSE","FALSE","FALSE","FALSE","FALSE","FALSE","FALSE","FALSE","FALSE"]
["SP OPERATINGBOX LEFT ASSY + PLATE + FIX","EN","SP/MBEAS/FDS 03"]
["SP OPERATINGBOX LEFT ASSY INCL.PLATE+FIX","EN","SP/MBEAS/CBD 01",null,"FALSE","TRUE","TRUE","TRUE","TRUE","TRUE","TRUE","FALSE","TRUE","FALSE","FALSE","FALSE","FALSE","FALSE","FALSE","FALSE","FALSE","FALSE"]
["SP OPERATINGBOX LEFT ASSY INCL.PLATE+FIX","EN","SP/MBEAS/CBL 01",null,"FALSE","FALSE","FALSE","FALSE","FALSE","FALSE","FALSE","FALSE","FALSE","FALSE","FALSE","FALSE","FALSE","FALSE","FALSE","FALSE","FALSE","FALSE"]
["SP OPERATINGBOX RIGHT ASSY + PLATE + FIX","EN","SP/MBEAS/CBR 01",null,"FALSE","FALSE","FALSE","FALSE","FALSE","FALSE","FALSE","FALSE","FALSE","FALSE","FALSE","FALSE","FALSE","FALSE","FALSE","FALSE","FALSE","FALSE"]
["SP RECEIVER FOR PERSONAL DETECT.SYSTEM","EN","SP/MBE 057",null,"FALSE","TRUE","FALSE","TRUE","TRUE","TRUE","TRUE","FALSE","FALSE","FALSE","FALSE","FALSE","FALSE","FALSE","FALSE","FALSE","FALSE","FALSE"]
["SP RECEIVER FOR PERSONAL DETECT.SYSTEM","EN","SP/MBE 064",null,"FALSE","FALSE","FALSE","FALSE","FALSE","FALSE","FALSE","FALSE","FALSE","FALSE","FALSE","FALSE","FALSE","FALSE","FALSE","FALSE","FALSE","FALSE"]
["SP RELAIS AND EMERGENCY BUTTONS BCC","EN","SP/MBEAS/BCC",null,"FALSE","TRUE","TRUE","TRUE","TRUE","TRUE","TRUE","FALSE","FALSE","FALSE","FALSE","FALSE","FALSE","FALSE","FALSE","FALSE","FALSE","FALSE"]
["SP REMOTE CONTROLLER FOR 6AISLES+CHARGER","EN","SP/MBEAS/REM 06",null,"FALSE","FALSE","FALSE","FALSE","FALSE","FALSE","FALSE","FALSE","FALSE","FALSE","FALSE","FALSE","FALSE","FALSE","FALSE","FALSE","FALSE","FALSE"]
["SP REMOTE CONTROLLER FOR 6AISLES+CHARGER","EN","SP/MBEAS/REM 06S",null,"FALSE","FALSE","FALSE","FALSE","FALSE","FALSE","FALSE","FALSE","FALSE","FALSE","FALSE","FALSE","FALSE","FALSE","FALSE","FALSE","FALSE","FALSE"]
["SP REMOTE CONTROLLER FOR 9AISLES+CHARGER","EN","SP/MBEAS/REM 09",null,"FALSE","FALSE","FALSE","FALSE","FALSE","FALSE","FALSE","FALSE","FALSE","FALSE","FALSE","FALSE","FALSE","FALSE","FALSE","FALSE","FALSE","FALSE"]
["SP REMOTE CONTROLLER FOR12AISLES+CHARGER","EN","SP/MBEAS/REM 12",null,"FALSE","FALSE","FALSE","FALSE","FALSE","FALSE","FALSE","FALSE","FALSE","FALSE","FALSE","FALSE","FALSE","FALSE","FALSE","FALSE","FALSE","FALSE"]
["SP REMOTE CONTROLLER FOR18AISLES+CHARGER","EN","SP/MBEAS/REM 18",null,"FALSE","FALSE","FALSE","FALSE","FALSE","FALSE","FALSE","FALSE","FALSE","FALSE","FALSE","FALSE","FALSE","FALSE","FALSE","FALSE","FALSE","FALSE"]
["SP REMOTE CONTROLLER INCL. CHARGER","EN","SP/MBEAS/RC 02",null,"FALSE","FALSE","TRUE","TRUE","TRUE","TRUE","TRUE","FALSE","FALSE","FALSE","FALSE","FALSE","FALSE","FALSE","FALSE","FALSE","FALSE","FALSE"]
["SP REMOTE CONTROLLER INCL.CHARGER+CONN.","EN","SP/MBEAS/RC 03",null,"FALSE","FALSE","TRUE","TRUE","TRUE","TRUE","TRUE","FALSE","FALSE","FALSE","FALSE","FALSE","FALSE","FALSE","FALSE","FALSE","FALSE","FALSE"]
["SP RUNNING WHEEL ASSEMBLY WITH MBM 015","EN","SP/MBWAS/R 01",null,"FALSE","FALSE","TRUE","FALSE","TRUE","TRUE","TRUE","FALSE","FALSE","FALSE","FALSE","FALSE","FALSE","FALSE","FALSE","FALSE","FALSE","FALSE"]
["SP RUNNING WHEEL ASSEMBLY WITH MBM 016","EN","SP/MBWAS/R 02",null,"FALSE","FALSE","FALSE","FALSE","FALSE","FALSE","FALSE","FALSE","FALSE","FALSE","FALSE","FALSE","FALSE","FALSE","FALSE","FALSE","FALSE","FALSE"]
["SP RUNNING WHEEL ASSEMBLY WITH MBM 018","EN","SP/MBWAS/R 41",null,"FALSE","FALSE","FALSE","FALSE","FALSE","FALSE","FALSE","FALSE","FALSE","FALSE","FALSE","FALSE","FALSE","FALSE","FALSE","FALSE","FALSE","FALSE"]
["SP RUNNING WHEEL ASSEMBLY+MBM 018 (>40T)","EN","SP/MBWAS/R H01",null,"FALSE","FALSE","TRUE","TRUE","FALSE","TRUE","TRUE","FALSE","FALSE","FALSE","FALSE","FALSE","FALSE","FALSE","FALSE","FALSE","FALSE","FALSE"]
["SP SAFETY RELAYS FOR 6 X SLS46B","EN","SP/MBEAS/MBE 069",null,"FALSE","FALSE","FALSE","FALSE","FALSE","FALSE","FALSE","FALSE","FALSE","FALSE","FALSE","FALSE","FALSE","FALSE","FALSE","FALSE","FALSE","FALSE"]
["SP SENDER FOR PERSONAL DETECT. SYSTEM","EN","SP/MBE 052",null,"FALSE","TRUE","FALSE","TRUE","TRUE","TRUE","TRUE","FALSE","FALSE","FALSE","FALSE","FALSE","FALSE","FALSE","FALSE","FALSE","FALSE","FALSE"]
["SP SENDER FOR PERSONAL DETECT. SYSTEM","EN","SP/MBE 063",null,"FALSE","FALSE","FALSE","FALSE","FALSE","FALSE","FALSE","FALSE","FALSE","FALSE","FALSE","FALSE","FALSE","FALSE","FALSE","FALSE","FALSE","FALSE"]
["SP SENSOR DOWN AISLE RECEIVER INCL.FIX","EN","SP/MBEAS/MBE 062",null,"FALSE","FALSE","FALSE","FALSE","FALSE","FALSE","FALSE","FALSE","FALSE","FALSE","FALSE","FALSE","FALSE","FALSE","FALSE","FALSE","FALSE","FALSE"]
["SP SENSOR DOWN AISLE RECEIVER INCL.FIX","EN","SP/MBEAS/MBE 062C",null,"FALSE","FALSE","FALSE","FALSE","FALSE","FALSE","FALSE","FALSE","FALSE","FALSE","FALSE","FALSE","FALSE","FALSE","FALSE","FALSE","FALSE","FALSE"]
["SP SENSOR DOWN AISLE RECEIVER INCL.FIX","EN","SP/MBEAS/MBE 068",null,"FALSE","FALSE","FALSE","FALSE","FALSE","FALSE","FALSE","FALSE","FALSE","FALSE","FALSE","FALSE","FALSE","FALSE","FALSE","FALSE","FALSE","FALSE"]
["SP SENSOR DOWN AISLE SENDER INCL.FIX","EN","SP/MBEAS/MBE 061",null,"FALSE","FALSE","FALSE","FALSE","FALSE","FALSE","FALSE","FALSE","FALSE","FALSE","FALSE","FALSE","FALSE","FALSE","FALSE","FALSE","FALSE","FALSE"]
["SP SENSOR DOWN AISLE SENDER INCL.FIX","EN","SP/MBEAS/MBE 061C",null,"FALSE","FALSE","FALSE","FALSE","FALSE","FALSE","FALSE","FALSE","FALSE","FALSE","FALSE","FALSE","FALSE","FALSE","FALSE","FALSE","FALSE","FALSE"]
["SP SENSOR DOWN AISLE SENDER NCL.FIX","EN","SP/MBEAS/MBE 067",null,"FALSE","FALSE","FALSE","FALSE","FALSE","FALSE","FALSE","FALSE","FALSE","FALSE","FALSE","FALSE","FALSE","FALSE","FALSE","FALSE","FALSE","FALSE"]
["SP SENSOR SET FOR SDL-SDR X4 FOR 18-26 T","EN","SP/MPEAS/USS 01",null,"FALSE","FALSE","FALSE","FALSE","FALSE","FALSE","FALSE","FALSE","FALSE","FALSE","FALSE","FALSE","FALSE","FALSE","FALSE","FALSE","FALSE","FALSE"]
["SP SENSOR SET FOR SDL-SDR X4 FOR 32 T","EN","SP/MPEAS/USS 02",null,"FALSE","FALSE","FALSE","FALSE","FALSE","FALSE","FALSE","FALSE","FALSE","FALSE","FALSE","FALSE","FALSE","FALSE","FALSE","FALSE","FALSE","FALSE"]
["SP SENSOR SET FOR SDL-SDR X4 FOR 42-48 T","EN","SP/MPEAS/USS 03",null,"FALSE","FALSE","FALSE","FALSE","FALSE","FALSE","FALSE","FALSE","FALSE","FALSE","FALSE","FALSE","FALSE","FALSE","FALSE","FALSE","FALSE","FALSE"]
["SP SET OF ELECTRICAL CABLES + SPLITTER","EN","SP/MBEAS/X 01",null,"FALSE","TRUE","TRUE","TRUE","TRUE","TRUE","TRUE","FALSE","FALSE","FALSE","FALSE","FALSE","FALSE","FALSE","FALSE","FALSE","FALSE","FALSE"]
["SP SIGNAL TOWER INCL.SUPPORT + FIXATIONS","EN","SP/MBEAS/SIG 01",null,"FALSE","FALSE","FALSE","FALSE","FALSE","FALSE","FALSE","FALSE","FALSE","FALSE","FALSE","FALSE","FALSE","FALSE","FALSE","FALSE","FALSE","FALSE"]
["SP UNDERDRIVE SENSOR SET FOR SDL-SDR 04","EN","SP/MBEAS/UDSS 04",null,"TRUE","TRUE","TRUE","TRUE","TRUE","TRUE","TRUE","FALSE","FALSE","FALSE","FALSE","FALSE","FALSE","FALSE","FALSE","FALSE","FALSE","FALSE"]
["SPARE PART PACK + ATL3.2 1000X1200N","EN","SP/ATL3.2/C/08"]
["SPARE PART PACK + ATLAS 3.1 1200X1000N","EN","SP/ATL3.1/C/02"]
["SPARE PART PACK + ATLAS 3.1 1200X1000NS","EN","SP/ATL3.1/C/05"]
["SPARE PART PACK + ATLAS 3.1 1200X1200N","EN","SP/ATL3.1/C/03"]
["SPARE PART PACK + ATLAS 3.1 1200X1200NS","EN","SP/ATL3.1/C/06"]
["SPARE PART PACK + ATLAS 3.1 1200X800N","EN","SP/ATL3.1/C/01"]
["SPARE PART PACK + ATLAS 3.1 1200X800NS","EN","SP/ATL3.1/C/04"]
["SPARE PART PACK + ATLAS 3.1 YYYYXZZZZN","EN","SP/ATL3.1/C/07"]
["SPARE PART PACK + ATLAS 3.2 1200X1000N","EN","SP/ATL3.2/C/02"]
["SPARE PART PACK + ATLAS 3.2 1200X1000NS","EN","SP/ATL3.2/C/05"]
["SPARE PART PACK + ATLAS 3.2 1200X1200N","EN","SP/ATL3.2/C/03"]
["SPARE PART PACK + ATLAS 3.2 1200X1200NS","EN","SP/ATL3.2/C/06"]
["SPARE PART PACK + ATLAS 3.2 1200X800N","EN","SP/ATL3.2/C/01"]
["SPARE PART PACK + ATLAS 3.2 1200X800NS","EN","SP/ATL3.2/C/04"]
["SPARE PART PACK + ATLAS 3.2 YYYYXZZZZN","EN","SP/ATL3.2/C/07"]
["SPARE PART PACK + ATLAS III 1200X1000N","EN","SP/ATL03/C/02"]
["SPARE PART PACK + ATLAS III 1200X1000NS","EN","SP/ATL03/C/05"]
["SPARE PART PACK + ATLAS III 1200X1200N","EN","SP/ATL03/C/03"]
["SPARE PART PACK + ATLAS III 1200X1200NS","EN","SP/ATL03/C/06"]
["SPARE PART PACK + ATLAS III 1200X800N","EN","SP/ATL03/C/01"]
["SPARE PART PACK + ATLAS III 1200X800NS","EN","SP/ATL03/C/04"]
["SPARE PART PACK + ATLAS III YYYYXZZZZN","EN","SP/ATL03/C/07"]
["SPARE PART PACK ATLAS 3.1 1200X1000N","EN","SP/ATL3.1/B/02"]
["SPARE PART PACK ATLAS 3.1 1200X1000NS","EN","SP/ATL3.1/B/05"]
["SPARE PART PACK ATLAS 3.1 1200X1200N","EN","SP/ATL3.1/B/03"]
["SPARE PART PACK ATLAS 3.1 1200X1200NS","EN","SP/ATL3.1/B/06"]
["SPARE PART PACK ATLAS 3.1 1200X800N","EN","SP/ATL3.1/B/01"]
["SPARE PART PACK ATLAS 3.1 1200X800NS","EN","SP/ATL3.1/B/04"]
["SPARE PART PACK ATLAS 3.1 YYYYXZZZZN","EN","SP/ATL3.1/B/07"]
["SPARE PART PACK ATLAS 3.2 1000X1200N","EN","SP/ATL3.2/B/08"]
["SPARE PART PACK ATLAS 3.2 1200X1000N","EN","SP/ATL3.2/B/02"]
["SPARE PART PACK ATLAS 3.2 1200X1000NS","EN","SP/ATL3.2/B/05"]
["SPARE PART PACK ATLAS 3.2 1200X1200N","EN","SP/ATL3.2/B/03"]
["SPARE PART PACK ATLAS 3.2 1200X1200NS","EN","SP/ATL3.2/B/06"]
["SPARE PART PACK ATLAS 3.2 1200X800N","EN","SP/ATL3.2/B/01"]
["SPARE PART PACK ATLAS 3.2 1200X800NS","EN","SP/ATL3.2/B/04"]
["SPARE PART PACK ATLAS 3.2 YYYYXZZZZN","EN","SP/ATL3.2/B/07"]
["SPARE PART PACK ATLAS II BASIC V2.1","EN","SP/ATL02/B/01"]
["SPARE PART PACK ATLAS II COMPLETE V2.1","EN","SP/ATL02/C/01"]
["SPARE PART PACK ATLAS III 1200X1000N","EN","SP/ATL03/B/02"]
["SPARE PART PACK ATLAS III 1200X1000NS","EN","SP/ATL03/B/05"]
["SPARE PART PACK ATLAS III 1200X1200N","EN","SP/ATL03/B/03"]
["SPARE PART PACK ATLAS III 1200X1200NS","EN","SP/ATL03/B/06"]
["SPARE PART PACK ATLAS III 1200X800N","EN","SP/ATL03/B/01"]
["SPARE PART PACK ATLAS III 1200X800NS","EN","SP/ATL03/B/04"]
["SPARE PART PACK ATLAS III YYYYXZZZZN","EN","SP/ATL03/B/07"]
["SPARE PARTS FOR BCC","EN","SP/MPEAS/BCC 3"]

{"sheet":"DATA","index":1,"n_rows":23,"n_cols":8,"rows_kept":23,"cut":false,"hidden":false,"merged":[]}
[]
[]
[]
[]
[]
[null,null,"TRUE",null,null,null,"Basic",false]
[null,null,"FALSE",null,null,null,"Plus",false]
[null,null,null,null,null,null,"Complete",false]
[]
[null,null,null,null,null,null,"Normal temp",false]
[null,null,null,null,null,null,"Coldstore",false]
[]
[null,null,null,null,null,null,"Heavy",false]
[null,null,null,null,null,null,"Light",false]
[]
[null,null,null,null,null,null,"Forklift",false]
[null,null,null,null,null,null,"Backside",false]
[]
[null,null,null,null,null,null,0.75,false]
[null,null,null,null,null,null,1.1000000000000001,false]
[null,null,null,null,null,null,1.5,false]
[null,null,null,null,null,null,2.2000000000000002,false]
[null,null,null,null,null,null,3,false]

{"sheet":"SELECTION TAB","index":2,"n_rows":26,"n_cols":15,"rows_kept":26,"cut":false,"hidden":false,"merged":[[7,14,7,19],[1,2,1,11],[7,2,7,11],[13,2,13,11],[25,2,25,11],[19,2,19,11]]}
[]
[]
[]
[]
[]
[]
[]
[null,null,"Select your service pack",null,null,null,null,null,null,null,null,null,null,null,"Select the inverter"]
[]
[]
[]
[]
[]
[null,null,"Select the version"]
[]
[]
[]
[]
[]
[null,null,"Select the environment"]
[]
[]
[]
[]
[]
[null,null,"Select the options"]

{"sheet":"RESULT","index":3,"n_rows":24,"n_cols":3,"rows_kept":24,"cut":false,"hidden":false,"merged":[]}
["Discription","Code","Price"]
[{"$f":"_xlfn._xlws.FILTER(SP_List[[#Headers],[Description]:[Price]],Sheet1!E:E=\"TRUE\")","v":{"$error":"#VALUE!"}}]
[{"$f":"_xlfn._xlws.FILTER(SP_List[[#Headers],[Description]:[Price]],Sheet1!E:E=\"TRUE\")","v":{"$error":"#VALUE!"}}]
[{"$f":"_xlfn._xlws.FILTER(SP_List[[#Headers],[Description]:[Price]],Sheet1!E:E=\"TRUE\")","v":{"$error":"#VALUE!"}}]
[{"$f":"_xlfn._xlws.FILTER(SP_List[[#Headers],[Description]:[Price]],Sheet1!E:E=\"TRUE\")","v":{"$error":"#VALUE!"}}]
[{"$f":"_xlfn._xlws.FILTER(SP_List[[#Headers],[Description]:[Price]],Sheet1!E:E=\"TRUE\")","v":{"$error":"#VALUE!"}}]
[{"$f":"_xlfn._xlws.FILTER(SP_List[[#Headers],[Description]:[Price]],Sheet1!E:E=\"TRUE\")","v":{"$error":"#VALUE!"}}]
[{"$f":"_xlfn._xlws.FILTER(SP_List[[#Headers],[Description]:[Price]],Sheet1!E:E=\"TRUE\")","v":{"$error":"#VALUE!"}}]
[{"$f":"_xlfn._xlws.FILTER(SP_List[[#Headers],[Description]:[Price]],Sheet1!E:E=\"TRUE\")","v":{"$error":"#VALUE!"}}]
[{"$f":"_xlfn._xlws.FILTER(SP_List[[#Headers],[Description]:[Price]],Sheet1!E:E=\"TRUE\")","v":{"$error":"#VALUE!"}}]
[{"$f":"_xlfn._xlws.FILTER(SP_List[[#Headers],[Description]:[Price]],Sheet1!E:E=\"TRUE\")","v":{"$error":"#VALUE!"}}]
[{"$f":"_xlfn._xlws.FILTER(SP_List[[#Headers],[Description]:[Price]],Sheet1!E:E=\"TRUE\")","v":{"$error":"#VALUE!"}}]
[{"$f":"_xlfn._xlws.FILTER(SP_List[[#Headers],[Description]:[Price]],Sheet1!E:E=\"TRUE\")","v":{"$error":"#VALUE!"}}]
[{"$f":"_xlfn._xlws.FILTER(SP_List[[#Headers],[Description]:[Price]],Sheet1!E:E=\"TRUE\")","v":{"$error":"#VALUE!"}}]
[{"$f":"_xlfn._xlws.FILTER(SP_List[[#Headers],[Description]:[Price]],Sheet1!E:E=\"TRUE\")","v":{"$error":"#VALUE!"}}]
[{"$f":"_xlfn._xlws.FILTER(SP_List[[#Headers],[Description]:[Price]],Sheet1!E:E=\"TRUE\")","v":{"$error":"#VALUE!"}}]
[{"$f":"_xlfn._xlws.FILTER(SP_List[[#Headers],[Description]:[Price]],Sheet1!E:E=\"TRUE\")","v":{"$error":"#VALUE!"}}]
[{"$f":"_xlfn._xlws.FILTER(SP_List[[#Headers],[Description]:[Price]],Sheet1!E:E=\"TRUE\")","v":{"$error":"#VALUE!"}}]
[{"$f":"_xlfn._xlws.FILTER(SP_List[[#Headers],[Description]:[Price]],Sheet1!E:E=\"TRUE\")","v":{"$error":"#VALUE!"}}]
[{"$f":"_xlfn._xlws.FILTER(SP_List[[#Headers],[Description]:[Price]],Sheet1!E:E=\"TRUE\")","v":{"$error":"#VALUE!"}}]
[{"$f":"_xlfn._xlws.FILTER(SP_List[[#Headers],[Description]:[Price]],Sheet1!E:E=\"TRUE\")","v":{"$error":"#VALUE!"}}]
[{"$f":"_xlfn._xlws.FILTER(SP_List[[#Headers],[Description]:[Price]],Sheet1!E:E=\"TRUE\")","v":{"$error":"#VALUE!"}}]
[{"$f":"_xlfn._xlws.FILTER(SP_List[[#Headers],[Description]:[Price]],Sheet1!E:E=\"TRUE\")","v":{"$error":"#VALUE!"}}]
[{"$f":"_xlfn._xlws.FILTER(SP_List[[#Headers],[Description]:[Price]],Sheet1!E:E=\"TRUE\")","v":{"$error":"#VALUE!"}}]